Cogmind - Beta 12 @@@ ROGUE MODE // 2023.04.01 @ 17:22:30 Player: Momo Result: Escaped! Performance ------------- Evolutions (9) 4500 Regions Visited (29) 5800 Robots Destroyed (591) 2955 Value Destroyed (35375) 35375 Prototype IDs (76) 1520 Alien Tech Used (0) 0 Bonus (33856) 33856 TOTAL SCORE: 84006 Bonus ------- Triggered High Security 500 High Alert Combat Kills 17238 Follower Combat Kills 7345 Entered Garrisons 2000 Used RIF Installer 6000 Aligned with FarCom 300 Scanned by Researcher 500 Destroyed MAIN.C Guards 500 Win 3000 Friendly Fire -3527 Cogmind --------- Core Integrity 390/1600 Matter 41/300 Energy 2104/2136 System Corruption 31% Temperature Cool (23) Movement Flying (36) Location To Epsilon Eridani Parts ------- > --- POWER (4) -------- Quantum-Particle Reactor > --- PROPULSION (6) --- Flying Diametric-Biometal Exoskeleton > --- UTILITY (10) ----- Scrap Engine Huge Storage Unit Experimental Targeting Computer Experimental Targeting Computer Experimental Core Analyzer Improved Armor Integrity Analyzer Experimental ECM Suite > --- WEAPON (5) ------- Hvy. KE Helical Construct/C Hpw. Thermic Quantum Construct/G > --- INVENTORY (25) --- Advanced Heat Sink Huge Storage Unit Experimental Energy Well (600) Experimental Matter Compressor (219) Experimental Core Analyzer Improved Armor Integrity Analyzer Advanced Kinecellerator Advanced Kinecellerator Centrium Light Armor Plating Experimental Focal Shield Thermal Barrier Relay Coupler [Sentry] (36) Relay Coupler [Hunter] (35) Advanced Remote Datajack Peak State ------------ > --- POWER ------------ Quantum-Particle Reactor > --- PROPULSION ------- Flying Diametric-Biometal Exoskeleton > --- UTILITY ---------- Armored Scrap Engine Advanced Heat Sink Huge Storage Unit Experimental Targeting Computer Experimental Targeting Computer Experimental Core Analyzer Improved Armor Integrity Analyzer Experimental ECM Suite Experimental Reaction Control System > --- WEAPON ----------- Quantum Rifle Heavy Dispersion Rifle Hvy. KE Helical Construct/C > --- INVENTORY -------- Enhanced Biometal Leg Enhanced Biometal Leg Advanced Heat Sink Huge Storage Unit Experimental Energy Well Experimental Matter Compressor Experimental Core Analyzer Improved Armor Integrity Analyzer Advanced Kinecellerator Advanced Kinecellerator Experimental Reaction Control System Centrium Light Armor Plating Experimental Focal Shield Thermal Barrier Relay Coupler [Sentry] Relay Coupler [Hunter] Gamma Bomb Array Point Singularity Launcher Advanced Remote Datajack [Rating: 202] Favorites ----------- Power Constructs Engine Light Ion Engine Power Core Light Nuclear Core Reactor Constructs Propulsion Constructs Treads Light Treads Leg Aluminum Leg Wheel Armored Huge Wheel Flight Unit Constructs Utility Armored Scrap Engine Device Armored Scrap Engine Storage Large Storage Unit Processor Advanced Targeting Computer Hackware Relay Coupler [Grunt] Protection Improved Powered Armor Weapon Constructs Energy Gun Constructs Energy Cannon Constructs Ballistic Gun Heavy Assault Rifle Ballistic Cannon Constructs Launcher Advanced EMP Blaster Special Weapon Advanced Remote Datajack Build | -11 -10 -10 -10 -9 -8 -8 -8 -8 -8 -6 -6 -5 -5 -5 -5 -4 -4 -4 -4 -3 -3 -3 -3 -2 -2 -2 -2 -1 -1 ------- Run | Jun Mat Min Exi Min Mat Gar Mat Sto Rec Fac Gar Fac Gar Fac Gar Fac Gar Fac Gar Res Gar Res Gar Res Gar Res Gar Acc Com Slots Evolved 18 | . . . . . 4 . . . . 4 . 2 . . . 2 . . . 2 . . . 2 . . . 2 . Power 3 | . . . . . . . . . . 1 . . . . . . . . . . . . . 1 . . . 1 . Propulsion 4 | . . . . . 2 . . . . 1 . . . . . 1 . . . . . . . . . . . . . Utility 8 | . . . . . 1 . . . . 1 . 2 . . . . . . . 2 . . . 1 . . . 1 . Weapon 3 | . . . . . 1 . . . . 1 . . . . . 1 . . . . . . . . . . . . . Parts Attached 341 | 3 4 6 1 1 8 10 15 3 3 5 1 5 8 7 8 13 10 3 11 16 7 36 12 4 13 26 12 19 71 Power 4 | . . 1 . . . . 3 . . . . . . . . . . . . . . . . . . . . . . Engine 3 | . . 1 . . . . 2 . . . . . . . . . . . . . . . . . . . . . . Core 1 | . . . . . . . 1 . . . . . . . . . . . . . . . . . . . . . . Reactor . | . . . . . . . . . . . . . . . . . . . . . . . . . . . . . . Propulsion 17 | 2 . 2 . 1 2 5 4 . 1 . . . . . . . . . . . . . . . . . . . . Treads 1 | . . . . . . 1 . . . . . . . . . . . . . . . . . . . . . . . Leg 5 | . . . . . 1 4 . . . . . . . . . . . . . . . . . . . . . . . Wheel 11 | 2 . 2 . 1 1 . 4 . 1 . . . . . . . . . . . . . . . . . . . . Hover . | . . . . . . . . . . . . . . . . . . . . . . . . . . . . . . Flight . | . . . . . . . . . . . . . . . . . . . . . . . . . . . . . . Utility 208 | . 3 . 1 . 1 . . . 2 3 1 3 5 5 2 12 8 3 10 8 2 31 8 4 11 13 9 11 52 Device 127 | . 1 . . . . . . . 1 1 1 2 3 4 2 7 6 3 5 5 1 24 5 3 3 6 4 8 32 Storage 10 | . 1 . 1 . 1 . . . 1 . . . . . . 1 . . . . . 3 . 1 . . . 1 . Processor 19 | . 1 . . . . . . . . 2 . 1 1 . . . . . . . . 2 . . . 3 . . 9 Hackware 45 | . . . . . . . . . . . . . . . . 4 1 . 5 3 1 2 3 . 8 4 5 2 7 Protection 7 | . . . . . . . . . . . . . 1 1 . . 1 . . . . . . . . . . . 4 Artifact . | . . . . . . . . . . . . . . . . . . . . . . . . . . . . . . Weapon 112 | 1 1 3 . . 5 5 8 3 . 2 . 2 3 2 6 1 2 . 1 8 5 5 4 . 2 13 3 8 19 Energy Gun 10 | . 1 3 . . 1 . 1 . . . . . . . . . . . . . . . . . . . . . 4 Energy Cannon 2 | . . . . . . . 1 . . 1 . . . . . . . . . . . . . . . . . . . Ballistic Gun 5 | 1 . . . . . 1 2 1 . . . . . . . . . . . . . . . . . . . . . Ballistic Cannon 7 | . . . . . 3 2 1 1 . . . . . . . . . . . . . . . . . . . . . Launcher 50 | . . . . . 1 2 3 1 . 1 . 2 3 2 4 . 1 . . 4 3 1 1 . 1 4 2 5 9 Special Weapon 38 | . . . . . . . . . . . . . . . 2 1 1 . 1 4 2 4 3 . 1 9 1 3 6 Impact Weapon . | . . . . . . . . . . . . . . . . . . . . . . . . . . . . . . Slashing Weapon . | . . . . . . . . . . . . . . . . . . . . . . . . . . . . . . Piercing Weapon . | . . . . . . . . . . . . . . . . . . . . . . . . . . . . . . Special Melee Weapon . | . . . . . . . . . . . . . . . . . . . . . . . . . . . . . . Unidentified Prototypes 26 | . . . . . 1 . 1 2 . . . 1 . 2 . . . . . . . 4 . 1 . 2 . . 12 Parts Lost 58 | . . 2 . 1 1 7 4 . . . 1 2 2 . . 1 . . 1 1 . 3 1 . 4 4 3 . 20 Power 5 | . . . . . . 1 1 . . . . . . . . . . . . . . . . . . 3 . . . Propulsion 7 | . . 1 . 1 . 4 . . . . . . . . . . . . . . . . . . . . . . 1 Utility 17 | . . . . . . . . . . . . . . . . . . . . 1 . 1 . . 3 . 2 . 10 Weapon 29 | . . 1 . . 1 2 3 . . . 1 2 2 . . 1 . . 1 . . 2 1 . 1 1 1 . 9 Highest Loss Streak 8 | . . 1 . 1 1 4 2 . . . 1 1 1 . . 1 . . 1 1 . 1 1 . 2 2 2 . 8 To Critical Strikes 1 | . . . . . . . . . . . . . . . . . . . . . . . . . . . 1 . . Average Slot Usage (%) 61 | . 58 92 100 99 83 75 65 63 58 59 55 55 50 57 58 55 56 57 56 60 61 60 61 60 59 58 57 56 51 Engine 1 | . . 13 14 14 9 8 5 . . 5 3 . . . . . . . . 1 . . . . . . . . . Core 1 | . . . . . . . 3 9 8 . 2 5 2 . 2 1 . . . . . . . . . . . . . Reactor 2 | . . . . . . . . . . . . . 2 5 2 3 5 5 5 2 4 4 4 4 4 4 4 4 3 Treads 1 | . . . . . . . . . 1 1 . . . . . . . 1 3 . . 2 4 4 1 . 3 4 2 Leg 1 | . . . . . 8 29 6 . . . . . . . . . 2 . 1 . 4 1 . . . 2 . . . Wheel 3 | . 28 27 28 27 27 4 14 18 2 1 . . . . . . . . . . . . . . . . . . . Flight 1 | . . . . . . . . . 6 3 6 5 5 5 5 3 . . . . . . . . . . . . 1 Device 14 | . 11 14 14 14 3 . . . 8 7 13 17 15 21 23 14 16 19 14 21 23 20 20 25 18 13 9 18 17 Storage 5 | . 1 14 14 14 9 9 9 9 7 6 6 5 5 5 5 5 5 5 5 4 4 4 4 4 4 4 4 4 4 Processor 1 | . 1 . . . . . . . . 4 . 3 1 . . . . . . . . 1 . . . . 3 . 7 Hackware 4 | . . . . . . . . . . . . . . . . 3 . . 4 5 4 5 6 4 11 14 15 12 2 Energy Gun 3 | . 1 20 28 28 11 1 3 2 . 4 8 1 . . 1 . . 5 10 3 . . 7 5 4 1 2 1 1 Energy Cannon 3 | . . . . . . . . . . 5 6 4 2 8 6 . . 9 4 2 4 5 . 1 3 3 4 4 4 Ballistic Gun 1 | . 14 1 . . . . 3 8 4 1 4 2 . . . . 4 . . 2 4 1 . . . . . . . Ballistic Cannon 5 | . . . . . 9 18 11 15 9 4 . 3 5 3 1 12 9 . . 3 3 6 5 4 1 2 . 1 1 Launcher 2 | . . . . . 5 4 7 . 9 8 1 3 1 2 4 2 2 . . . 1 . . . 1 . . 1 . Special Weapon 2 | . . . . . . . . . . . . . . . . 5 2 5 5 3 2 2 2 4 4 6 8 4 1 Naked Turns . | . . . . . . . . . . . . . . . . . . . . . . . . . . . . . . Heaviest Build 226 | 2 26 30 50 50 53 26 28 27 42 52 61 61 88 83 88 103 125 124 110 116 116 169 173 187 187 196 173 223 226 Greatest Support 299 | 3 32 26 26 26 30 45 56 56 80 80 80 80 80 80 80 85 169 284 284 194 194 280 280 299 187 271 260 260 260 Greatest Overweight (x) 4 | . . 1 1 4 2 2 1 . 1 . . . 1 1 1 1 1 . . 1 . . . 1 1 1 . . . Average Overweight (x) . | . . . 1 1 . . . . . . . . . . . 1 . . . . . . . . . . . . . Largest Inventory Capacity 40 | 5 15 15 20 20 40 40 40 40 40 15 15 15 15 15 15 15 15 15 15 15 15 25 25 25 25 25 25 25 25 Average Capacity 21 | 5 6 15 17 20 31 40 40 40 14 15 15 15 15 15 15 15 15 15 15 15 15 21 25 25 25 25 25 25 25 Most Carried 40 | 3 6 11 17 19 29 33 40 40 40 15 15 15 15 15 15 15 15 15 15 15 15 25 25 25 25 25 25 25 25 Average Carried 19 | 1 4 9 14 18 18 28 38 39 12 13 15 14 13 14 14 14 14 14 13 12 13 19 23 24 23 24 23 24 18 Final Capacity 40 | 5 15 15 20 20 40 40 40 40 15 15 15 15 15 15 15 15 15 15 15 15 15 25 25 25 25 25 25 25 25 Final Carried 40 | 2 6 11 17 19 29 33 40 40 15 15 15 15 14 15 15 13 15 15 15 12 14 25 25 25 25 25 24 24 14 Scrap Engine Consumption 614 | . . . . . . . . . 71 49 7 18 16 19 34 15 35 11 6 46 7 66 27 7 26 35 18 47 54 Constructs Created 18 | . . . . . . . . . 4 1 1 . 2 1 . 1 . . . . . 2 . . . 1 1 1 3 Constructs Modified 264 | . . . . . . . . . 24 18 6 6 7 6 10 11 13 7 4 22 4 26 7 12 12 18 7 22 22 Class Distribution -------------------- 39% | Botlord-Construct 22% | Construct 9% | Hauler-Mutant 8% | Bothacker-Construct 7% | Mutant 6% | Commander-Construct Dominant Class ---------------- Mutant | -10/Materials Mutant | -10/Mines Mutant | -10/Exiles Mutant | -9/Mines Hauler-Mutant | -8/Materials Hauler-Mutant | -8/Garrison Hauler-Mutant | -8/Materials Hauler-Mutant | -8/Storage Commander-Construct | -8/Recycling Commander-Construct | -6/Factory Construct | -6/Garrison Construct | -5/Factory Construct | -5/Garrison Construct | -5/Factory Bothacker-Construct | -5/Garrison Botlord-Construct | -4/Factory Bothacker-Construct | -4/Garrison Botlord-Construct | -4/Factory Botlord-Construct | -4/Garrison Bothacker-Construct | -3/Research Botlord-Construct | -3/Garrison Construct | -3/Research Botlord-Construct | -3/Garrison Botlord-Construct | -2/Research Botlord-Construct | -2/Garrison Botlord-Construct | -2/Research Botlord-Construct | -2/Garrison Botlord-Construct | -1/Access Botlord-Construct | -1/Command Resources | -11 -10 -10 -10 -9 -8 -8 -8 -8 -8 -6 -6 -5 -5 -5 -5 -4 -4 -4 -4 -3 -3 -3 -3 -2 -2 -2 -2 -1 -1 ----------- Run | Jun Mat Min Exi Min Mat Gar Mat Sto Rec Fac Gar Fac Gar Fac Gar Fac Gar Fac Gar Res Gar Res Gar Res Gar Res Gar Acc Com Matter Collected 22687 | 207 33 168 . 21 154 602 789 250 346 185 30 361 226 143 870 407 578 97 377 1271 279 2996 1137 . 1324 2115 655 1213 5853 Remotely . | . . . . . . . . . . . . . . . . . . . . . . . . . . . . . . Salvage Created 29590 | . . 244 . 47 197 550 990 236 1453 813 852 850 950 905 1138 434 905 165 1022 1415 529 2975 1207 61 1349 1302 448 2778 5775 Parts 1306 | . . 18 . . 19 32 62 11 40 29 47 45 42 30 48 16 43 11 27 81 33 136 46 6 39 80 18 84 263 Haulers Intercepted 30 | . . . . . 1 . 3 . . 3 . 3 . 3 . 1 . . . 2 . 3 . . . . . 11 . Recyclers Shooed 16 | . . 1 . . . . . 1 9 . . 1 . . . . . . . . . 2 . . . 2 . . . Parts Field Recycled . | . . . . . . . . . . . . . . . . . . . . . . . . . . . . . . Retrieved Matter . | . . . . . . . . . . . . . . . . . . . . . . . . . . . . . . Parts Self-Destructed . | . . . . . . . . . . . . . . . . . . . . . . . . . . . . . . Prevented . | . . . . . . . . . . . . . . . . . . . . . . . . . . . . . . Kills | -11 -10 -10 -10 -9 -8 -8 -8 -8 -8 -6 -6 -5 -5 -5 -5 -4 -4 -4 -4 -3 -3 -3 -3 -2 -2 -2 -2 -1 -1 ------- Run | Jun Mat Min Exi Min Mat Gar Mat Sto Rec Fac Gar Fac Gar Fac Gar Fac Gar Fac Gar Res Gar Res Gar Res Gar Res Gar Acc Com Combat Hostiles Destroyed 471 | . . 7 . 1 6 20 23 4 7 9 17 8 22 9 23 8 17 3 3 23 17 37 12 1 27 23 8 31 105 Guns 38 | . . 6 . 1 2 1 3 2 . . . . . . 1 . 3 2 . 5 . 5 1 . 4 . . 1 1 Cannons 264 | . . . . . 2 11 12 2 7 6 15 3 10 7 6 5 13 1 3 4 8 26 8 1 11 11 5 15 72 AOE 153 | . . 1 . . 2 8 8 . . 3 2 5 12 1 12 3 1 . . 12 9 3 3 . 12 12 3 14 27 Classes Destroyed 26 | . . 2 . . 3 1 4 . . 1 1 . 1 1 . . 1 . . 4 . 2 . . 2 1 . . 2 Worker 29 | . . . . . . . 2 . . . . 4 . . . . . . . 5 . 4 . . . 7 . 4 3 Builder 14 | . . . . . . . 2 . . . . 1 . . . . . . . 3 . 2 . . . 6 . . . Tunneler 2 | . . . . . . . . . . . . . . . . . . . . . . 1 . . . 1 . . . Hauler 30 | . . . . . 1 . 3 . . 3 . 3 . 3 . 1 . . . 2 . 3 . . . . . 11 . Recycler 26 | . . . . . . . 2 1 14 1 . 1 . . . . . . . 1 . 3 . . . 3 . . . Mechanic 3 | . . . . . . . . . . . . . . . . . . . . 1 . . . . . 1 . . 1 Operator 2 | . . . . . . . . . . . . . . . . . . . . . . 2 . . . . . . . Watcher 14 | . . . . . . . 3 . . 2 . 3 . . . . . . . 2 . . . . . . . 1 3 Swarmer 86 | . . 2 . . 3 4 5 . . 3 . 5 5 . 4 5 4 . 1 . 15 6 . . 11 . . 13 . Cutter 4 | . . . . . . . . . . . 3 . . . . . . . . . . . . . . . . 1 . Saboteur 5 | . . . . . . . . . . . . . . . . . . . . 1 . 2 . . . . . . 2 Grunt 148 | . . 5 . . . 9 13 1 2 4 9 1 14 4 11 2 3 . . 1 . 7 4 . 5 9 5 8 31 Brawler 17 | . . . . . . . . . . . . . . 1 . . . . . . . 2 2 . 5 1 . 2 4 Duelist 9 | . . . . . . 1 . . 2 1 . . . 1 . . . . . . . . . . . 1 . . 3 Protector 5 | . . . . . . . . . . . . . . . . . . . . . . . . . 1 1 . 1 2 Sentry 51 | . . . . . 2 5 5 2 1 . 2 1 1 1 6 1 5 1 1 2 . 6 1 . 2 . . 2 4 Demolisher 2 | . . . . . . . . . . . . . . . . . . . . . . . . . 1 . . . 1 Specialist 2 | . . . . . . . . . . . . . . . . . . . . 1 . . . . . . . . 1 Hunter 40 | . . . . . 1 1 . 1 2 . 2 1 1 . 2 . 2 . . 6 2 . . . 4 3 1 3 8 Programmer 66 | . . . . . . . . . . 1 1 . . 2 . . 1 2 1 11 . 14 4 1 1 8 1 3 15 Heavy 1 | . . . . . . . . . . . . . . . . . . . . . . . . . . 1 . . . Behemoth 7 | . . . . . . . . . . . . . 1 . . . 1 . 1 . . . 1 . 1 1 1 . . Combat Programmer 2 | . . . . . . . . . . . . . . . . . . . . . . . . . . . . . 2 Investigator 1 | . . . . . . . . . . . . . . . . . . . . . . . . . . . . . 1 Striker 6 | . . . . . . . . . . . . . . . . . 1 . . 1 . . . . . . . . 4 Executioner 9 | . . . . . . . . . . . . . . . . . . . . 1 . . . . . . . . 8 Thug 4 | . . . . . . . . . . . . . . . . . . . . . . . . . . . . . 4 Savage 1 | . . . . . . . . . . . . . . . . . . . . . . . . . . . . . 1 Butcher 1 | . . . . . . . . . . . . . . . . . . . . . . . . . . . . . 1 Guerrilla 2 | . . . . . . . . . . . . . . . . . . . . . . . . . . . . . 2 Wizard 4 | . . . . . . . . . . . . . . . . . . . . . . . . . . . . . 4 Mutant 8 | . . . . . . . . . . . . . . . . . . . . . . . . . . . . . 8 Best Kill Streak 16 | . . 2 . 1 4 6 7 2 5 3 6 6 13 2 14 5 6 3 1 16 6 6 4 1 9 13 2 7 16 Combat Bots Only 16 | . . 2 . 1 3 6 4 2 5 3 6 5 13 2 14 5 6 3 1 8 6 6 4 1 9 11 2 6 16 Max Kills in Single Turn 7 | . . 1 . 1 2 4 6 1 1 2 1 3 5 1 3 2 1 1 1 3 3 3 2 1 3 7 2 6 4 Gunslinging . | . . . . . . . . . . . . . . . . . . . . . . . . . . . . . . Exploded 5 | . . 1 . . 2 4 3 . . 2 1 3 5 1 3 2 1 . . 3 3 1 2 . 3 3 2 5 4 Melee . | . . . . . . . . . . . . . . . . . . . . . . . . . . . . . . Uniques/NPCs Destroyed 1 | . . . . 1 . . . . . . . . . . . . . . . . . . . . . . . . . YI-UF0 (-9/Mines) Combat | -11 -10 -10 -10 -9 -8 -8 -8 -8 -8 -6 -6 -5 -5 -5 -5 -4 -4 -4 -4 -3 -3 -3 -3 -2 -2 -2 -2 -1 -1 -------- Run | Jun Mat Min Exi Min Mat Gar Mat Sto Rec Fac Gar Fac Gar Fac Gar Fac Gar Fac Gar Res Gar Res Gar Res Gar Res Gar Acc Com Damage Taken 30898 | . 127 277 . 92 253 552 1293 384 195 645 456 438 1382 114 1092 580 1006 193 255 1783 1019 1462 580 89 2440 2705 464 760 10262 Core 2969 | . 45 30 . 15 27 94 141 24 15 38 25 50 150 15 102 28 170 43 38 138 102 60 12 13 74 263 47 31 1179 Absorbed by Shields 11895 | . . . . . . . . . . . . . 92 41 396 . 507 199 266 1321 828 1482 229 83 1716 1114 233 609 2779 Regen/Repaired (Parts) 13440 | . . . . . . . . . 27 324 113 243 397 309 984 834 547 75 116 907 415 1441 170 355 1405 714 190 408 3466 Core Remaining (%) 68 | 100 . . . 64 . . . . 45 . 92 . . . 68 . . . 75 . . . 76 . . . 72 . 24 Volleys Fired 1894 | . . 19 . 2 15 44 89 42 66 97 48 58 65 41 67 33 52 14 100 73 49 152 75 1 87 100 49 138 318 Largest 4 | . . 2 . 2 3 3 3 3 2 2 1 1 2 2 2 3 3 3 3 3 4 4 3 3 3 3 1 2 3 Hottest 343 | . . 90 . 90 144 157 129 122 88 82 44 80 135 111 65 195 225 205 217 297 343 323 281 217 203 145 76 226 205 Shots Fired 2502 | . . 30 . 4 32 85 144 52 95 124 48 58 73 48 86 44 100 20 107 127 52 274 103 3 135 137 48 150 323 Gun 432 | . . 30 . 4 12 9 39 10 8 27 . . 3 4 20 . 25 9 69 44 1 38 20 1 35 9 . 10 5 Cannon 1638 | . . . . . 18 69 98 42 87 94 46 54 63 39 46 30 70 11 17 45 35 217 63 2 60 75 23 82 252 Launcher 169 | . . . . . 2 7 7 . . 3 2 4 7 5 20 2 1 . . 21 9 4 3 . 10 19 3 8 32 Special 263 | . . . . . . . . . . . . . . . . 12 4 . 21 17 7 15 17 . 30 34 22 50 34 Kinetic 1153 | . . 6 . . 18 73 102 47 95 108 20 27 41 12 25 30 94 . 1 18 . 153 63 1 26 74 . 6 113 Thermal 788 | . . . . . . 5 35 5 . 13 26 27 25 28 40 . 1 17 85 52 32 78 8 2 69 10 22 70 138 Explosive 134 | . . . . . 2 7 7 . . 3 2 4 7 . 11 . 1 . . 17 6 4 3 . 10 19 3 2 26 Electromagnetic 164 | . . 24 . 4 12 . . . . . . . . 8 10 2 . 3 . 23 7 24 12 . . . 1 22 12 Robot Hit Streak 26 | . . 8 . 6 8 8 9 7 11 18 13 16 9 14 24 26 18 6 19 25 15 19 17 1 26 13 7 13 19 Robot Miss Streak 11 | . . 2 . 1 4 3 5 3 6 4 . 10 4 4 2 2 4 . 1 7 4 3 3 1 2 4 2 11 4 Penetration Max 1 | . . . . . . . . . . 1 . . . 1 . 1 . . . . . . 1 . 1 1 . . 1 Secondary Targets 1 | . . 1 . . . . . . . . . . . . . . . . . . . . . . . . . . . Max Gunslinging Chain 1 | . . 1 . . . . . . . . . . . . . . . . . . . . . . . . . . . Capacitor 127 | . . . . . . . . . . . . . . . . . . . . . . . . . . . . . 127 Shots Hit Robots 1574 | . . 28 . 4 19 47 81 29 60 49 10 20 47 32 67 34 60 4 93 89 34 163 73 1 95 83 33 97 222 Core Hits 1028 | . . 17 . 4 14 30 51 14 36 28 21 28 52 16 49 12 25 3 30 91 39 63 30 1 70 68 8 68 160 Critical Kills 5 | . . . . . . . . . . . . . . . . . 1 . 1 . . 1 1 . 1 . . . . Critical Parts Destroyed 12 | . . . . . . . . . . . . . . . . . . . 5 . . 2 1 . . . . 1 3 Critical Strikes 54 | . . . . . . 3 5 3 . 1 . . . . 1 1 7 . 6 2 . 11 5 . 3 . . 1 5 Burn 3 | . . . . . . . . 1 . 1 . . . . 1 . . . . . . . . . . . . . . Meltdown 1 | . . . . . . . . . . . . . . . . . . . . . . 1 . . . . . . . Destroy 21 | . . . . . . . . . . . . . . . . . 2 . 6 . . 2 2 . 3 . . 1 5 Blast 27 | . . . . . . 3 5 2 . . . . . . . 1 5 . . 2 . 7 2 . . . . . . Corrupt 2 | . . . . . . . . . . . . . . . . . . . . . . 1 1 . . . . . . Melee Attacks . | . . . . . . . . . . . . . . . . . . . . . . . . . . . . . . Impact . | . . . . . . . . . . . . . . . . . . . . . . . . . . . . . . Slashing . | . . . . . . . . . . . . . . . . . . . . . . . . . . . . . . Piercing . | . . . . . . . . . . . . . . . . . . . . . . . . . . . . . . Sneak Attacks . | . . . . . . . . . . . . . . . . . . . . . . . . . . . . . . Combat Hostiles . | . . . . . . . . . . . . . . . . . . . . . . . . . . . . . . Follow-up Attacks . | . . . . . . . . . . . . . . . . . . . . . . . . . . . . . . Damage Inflicted 116870 | . . 386 . 49 450 1509 2609 679 1412 2677 2122 2155 3900 1965 4102 1255 3190 198 3192 7109 2837 10034 3949 113 6299 8342 1949 9814 34574 Guns 9560 | . . 337 . 49 110 94 353 134 161 391 . . 75 50 481 . 404 121 1910 1130 . 1459 652 . 956 334 . 236 123 Cannons 73102 | . . . . . 244 956 1471 545 1251 2112 2050 1301 2453 1664 1570 1159 2671 77 1282 1715 1559 7766 2850 113 2706 2536 1160 7840 24051 Explosions 34208 | . . 49 . . 96 459 785 . . 174 72 854 1372 251 2051 96 115 . . 4264 1278 809 447 . 2637 5472 789 1738 10400 Melee . | . . . . . . . . . . . . . . . . . . . . . . . . . . . . . . Ramming . | . . . . . . . . . . . . . . . . . . . . . . . . . . . . . . Kinetic 37691 | . . 60 . . 244 1010 1307 592 1412 2115 567 329 1263 439 942 1159 3075 . 89 383 . 5774 2983 . 1447 2536 . 92 9873 Thermal 41340 | . . 49 . . . 40 517 87 . 388 1483 1086 1265 1161 1109 . . 198 3103 1892 1391 2876 109 113 2215 334 1009 6968 13947 Explosive 29663 | . . . . . 96 459 785 . . 174 72 579 1372 . 1502 . 115 . . 3406 949 809 447 . 2637 5472 789 1000 9000 Electromagnetic 8176 | . . 277 . 49 110 . . . . . . 161 . 365 549 96 . . . 1428 497 575 410 . . . 151 1754 1754 Impact . | . . . . . . . . . . . . . . . . . . . . . . . . . . . . . . Slashing . | . . . . . . . . . . . . . . . . . . . . . . . . . . . . . . Piercing . | . . . . . . . . . . . . . . . . . . . . . . . . . . . . . . Highest Corruption 31 | . 1 1 1 1 . . . . 1 . . . . 1 1 1 2 2 4 15 15 28 30 4 4 27 27 . 31 Average Corruption 10 | . 1 1 1 1 . . . . 1 . . . . 1 1 1 1 1 3 6 15 22 26 2 4 13 16 . 10 Corruption Purged 13 | . . . . . . . . . . . . . . . 1 1 2 2 1 . . 6 . . . . . . . Corruption Blocked 18 | . . . . . . . . . . . . . . . . . . . . . . 15 . . . . . . 3 Effects 424 | . . 14 1 5 . . . . 4 . . . . . 5 . . 1 12 29 17 137 39 . 46 49 13 . 52 Message Errors 106 | . . 2 . 3 . . . . . . . . . . . . . . 7 10 8 38 9 . 9 12 2 . 6 Matter Fused 95 | . . 8 . 1 . . . . 1 . . . . . . . . 1 . 7 2 30 10 . 14 7 4 . 10 Heat Flow Errors 40 | . . 1 . 1 . . . . . . . . . . . . . . 1 2 1 16 4 . 7 2 2 . 3 Energy Discharges 54 | . . . . . . . . . 2 . . . . . 3 . . . 1 1 1 10 4 . 8 8 1 . 15 Parts Rejected 11 | . . 1 . . . . . . . . . . . . . . . . . . 1 2 . . . 3 1 . 3 Parts Fused 6 | . . 1 . . . . . . . . . . . . . . . . . . 1 1 2 . . . . . 1 Data Loss (minor) 41 | . . 1 1 . . . . . 1 . . . . . 1 . . . 2 5 1 13 1 . 3 7 . . 5 Data Loss (major) 16 | . . . . . . . . . . . . . . . . . . . . 2 . 5 . . 4 2 1 . 2 Misfires 5 | . . . . . . . . . . . . . . . . . . . . 1 1 . . . 1 . . . 2 Alerts 4 | . . . . . . . . . . . . . . . . . . . . 1 . 1 1 . . . . . 1 Misdirections 17 | . . . . . . . . . . . . . . . . . . . . . . 9 . . . 4 1 . 3 Weapon Failures 29 | . . . . . . . . . . . . . . . 1 . . . 1 . 1 12 8 . . 4 1 . 1 Overload Shots . | . . . . . . . . . . . . . . . . . . . . . . . . . . . . . . Overflow Damage 10003 | . . . . . 15 6 25 4 12 35 116 306 34 48 68 32 179 . 29 386 28 604 87 . 329 708 223 1596 5133 Projectiles 8220 | . . . . . . 3 25 4 12 35 116 138 34 48 . 32 179 . 29 239 1 581 87 . 253 293 140 1596 4375 Explosions 1783 | . . . . . 15 3 . . . . . 168 . . 68 . . . . 147 27 23 . . 76 415 83 . 758 Melee . | . . . . . . . . . . . . . . . . . . . . . . . . . . . . . . Knockbacks 181 | . . . . . 2 14 6 2 6 17 2 2 8 5 5 4 5 . . 3 . 18 8 . 3 14 . . 57 Impact . | . . . . . . . . . . . . . . . . . . . . . . . . . . . . . . Kinetic 162 | . . . . . 2 14 6 2 5 17 2 2 8 4 4 4 5 . . 3 . 17 8 . 3 14 . . 42 Secondary 19 | . . . . . . . . . 1 . . . . 1 1 . . . . . . 1 . . . . . . 15 Self-Inflicted Damage 1369 | . . 50 . . . 37 81 . . 42 . 141 121 . 15 . . . . 194 58 17 . . 178 255 . 11 169 Shots 38 | . . 1 . . . 2 2 . . 1 . 2 7 . 1 . . . . 6 2 1 . . 3 6 . 1 3 Rammed . | . . . . . . . . . . . . . . . . . . . . . . . . . . . . . . Targets Rammed . | . . . . . . . . . . . . . . . . . . . . . . . . . . . . . . Kicked . | . . . . . . . . . . . . . . . . . . . . . . . . . . . . . . Crushed . | . . . . . . . . . . . . . . . . . . . . . . . . . . . . . . Highest Temperature 534 | . . 204 . 132 132 349 361 219 84 24 63 321 392 3 . 270 534 227 148 122 183 499 496 120 379 237 146 300 378 Average Temperature 96 | . . 38 . 51 41 83 110 52 31 13 22 120 172 3 . 80 136 134 45 26 57 101 122 67 80 86 69 65 77 Received Heat Transfer 3935 | . 72 108 . 9 54 261 756 126 72 216 171 45 436 12 227 39 89 4 8 31 17 72 92 . 247 144 25 81 521 Effects 27 | . . . . . . 4 . . . . . 1 2 . . . 5 . . . . 9 2 . 1 . . 2 1 Shutdowns 7 | . . . . . . 1 . . . . . . . . . . 1 . . . . 2 1 . 1 . . . 1 Energy Bleed 6 | . . . . . . 2 . . . . . 1 . . . . . . . . . . 1 . . . . 2 . Interference 12 | . . . . . . 1 . . . . . . . . . . 4 . . . . 7 . . . . . . . Short Circuit 2 | . . . . . . . . . . . . . 2 . . . . . . . . . . . . . . . . Siege Activations . | . . . . . . . . . . . . . . . . . . . . . . . . . . . . . . Robots Corrupted 20 | . . . . . . . . . . . . . . 1 3 . . . . 4 . 2 3 . . . . 2 5 Combat Hostiles 13 | . . . . . . . . . . . . . . 1 3 . . . . 2 . 2 . . . . . . 5 Parts Fried 44 | . . . . . . . . . . . . 1 . 1 4 . . . . 13 1 4 6 . . . . 10 4 Impact Corruptions 3 | . . . . . . . . . . . . . . . . . . . . . . . . . . . . . 3 Robots Melted 4 | . . . . . . . . . . 1 . . . . 1 . . . . . . 1 . . . . . 1 . Combat Hostiles 3 | . . . . . . . . . . . . . . . 1 . . . . . . 1 . . . . . 1 . Parts Melted 14 | . . . . . . . . 1 . 1 . . . . 5 . . . 1 . . 1 . . 1 . 1 3 . Heat Transferred 15495 | . . 100 . . . 74 888 259 . 1041 925 655 666 777 639 . . 111 2368 914 351 1369 278 37 1238 278 518 1881 128 Parts Sabotaged 13 | . . . . . . . . . . . . . 3 . . . . . . . . . . . . 1 . . 9 Parts Stolen . | . . . . . . . . . . . . . . . . . . . . . . . . . . . . . . Parts Stripped . | . . . . . . . . . . . . . . . . . . . . . . . . . . . . . . Power Chain Reactions 8 | . . 1 . . . . . . . . . . . . . . . . . 4 . . . . . . . 1 2 Missiles Intercepted . | . . . . . . . . . . . . . . . . . . . . . . . . . . . . . . Alert | -11 -10 -10 -10 -9 -8 -8 -8 -8 -8 -6 -6 -5 -5 -5 -5 -4 -4 -4 -4 -3 -3 -3 -3 -2 -2 -2 -2 -1 -1 ------- Run | Jun Mat Min Exi Min Mat Gar Mat Sto Rec Fac Gar Fac Gar Fac Gar Fac Gar Fac Gar Res Gar Res Gar Res Gar Res Gar Acc Com Peak Influence 4912 | . 53 182 . . 220 660 676 675 361 340 691 881 1479 1495 2038 1379 2010 1208 1041 627 844 1528 1574 911 1893 1639 1554 1279 4912 Initial 1229 | . . 20 . . . 143 321 226 262 15 238 362 616 776 1027 1069 863 1054 705 585 263 414 1146 885 683 1064 1229 932 818 Average 902 | . 15 77 . . 105 397 495 407 104 127 462 614 1121 1212 1711 1258 1554 1135 938 210 656 895 1377 886 1175 1231 1402 1004 2860 Maximum Alert Level 5 | . . . . . 1 2 2 2 1 1 2 3 4 4 5 4 5 4 3 2 3 4 4 3 5 5 4 4 5 Low Security (%) 21 | 100 100 100 . 100 93 12 . . 83 70 . 3 . . . . . . . 68 . . . . . . . . . Level 1 8 | . . . . . 6 49 14 63 16 29 36 25 . . . . . . . 13 14 . . . . . . . . Level 2 14 | . . . . . . 37 85 36 . . 63 30 21 . . . . . . 18 20 39 . . 4 . . 6 . Level 3 19 | . . . . . . . . . . . . 40 13 30 4 9 12 39 100 . 64 23 . 100 38 51 . 58 3 Level 4 24 | . . . . . . . . . . . . . 64 69 16 90 38 60 . . . 36 100 . 38 26 100 34 28 Level 5 5 | . . . . . . . . . . . . . . . 78 . 48 . . . . . . . 18 21 . . . High Security 4 | . . . . . . . . . . . . . . . . . . . . . . . . . . . . . 68 Max Security . | . . . . . . . . . . . . . . . . . . . . . . . . . . . . . . Squads Dispatched 101 | . 1 . . . . . 2 1 . 9 . 4 . 6 . 3 . . . 6 . 13 . 2 . 8 . 8 38 Investigation 7 | . . . . . . . . 1 . 2 . 1 . . . . . . . . . 2 . . . . . 1 . Extermination 19 | . . . . . . . . . . 2 . . . 1 . . . . . 4 . 5 . 1 . 3 . 2 1 Reinforcement 20 | . 1 . . . . . 2 . . 5 . 1 . 3 . 1 . . . 2 . 1 . . . . . 3 1 Assault 54 | . . . . . . . . . . . . 2 . 2 . 1 . . . . . 5 . 1 . 5 . 2 36 Garrison 1 | . . . . . . . . . . . . . . . . 1 . . . . . . . . . . . . . Intercept . | . . . . . . . . . . . . . . . . . . . . . . . . . . . . . . Searches Triggered . | . . . . . . . . . . . . . . . . . . . . . . . . . . . . . . Construction Impeded 3 | . . . . . . . 1 . . . . 1 . 1 . . . . . . . . . . . . . . . Haulers Reinforced 6 | . . . . . . . . . . 2 . . . 2 . . . . . . . . . . . . . 2 . Active Scanning Responses . | . . . . . . . . . . . . . . . . . . . . . . . . . . . . . . Cargo Convoy Interrupts 3 | . . . . . . . . . . . . . . . . . . . . 1 . 1 . . . 1 . . . Alert ID Control Effect 79 | . . . . . . . . . . . . . . . . 2 5 . 6 1 1 . 4 . . 10 7 16 27 Stealth | -11 -10 -10 -10 -9 -8 -8 -8 -8 -8 -6 -6 -5 -5 -5 -5 -4 -4 -4 -4 -3 -3 -3 -3 -2 -2 -2 -2 -1 -1 --------- Run | Jun Mat Min Exi Min Mat Gar Mat Sto Rec Fac Gar Fac Gar Fac Gar Fac Gar Fac Gar Res Gar Res Gar Res Gar Res Gar Acc Com Distress Signals 19 | . . . . . . . 4 1 . . . . . 1 . 1 . . . 2 . 1 . . . 1 . 3 5 Communications Jammed 468 | . . . . . . . . . . . . 20 . . 6 . . . . 115 . 12 . 4 34 49 . 81 147 Distress Signals 445 | . . . . . . . . . . . . 5 . . . . . . . 115 . 10 . 4 34 49 . 81 147 Times Spotted 1018 | . 5 11 . 3 6 17 35 14 10 30 18 16 31 20 26 25 34 6 16 37 31 92 22 3 43 61 19 75 312 Peak Tracking Total 28 | . 4 3 . 2 3 4 6 5 5 7 4 5 10 4 6 4 4 3 8 11 9 9 11 3 7 7 3 10 28 Tactical Retreats 72 | . . . . . . 1 2 1 . 3 2 5 2 1 1 1 2 1 . . 4 18 . . 3 1 . 2 22 Traps | -11 -10 -10 -10 -9 -8 -8 -8 -8 -8 -6 -6 -5 -5 -5 -5 -4 -4 -4 -4 -3 -3 -3 -3 -2 -2 -2 -2 -1 -1 ------- Run | Jun Mat Min Exi Min Mat Gar Mat Sto Rec Fac Gar Fac Gar Fac Gar Fac Gar Fac Gar Res Gar Res Gar Res Gar Res Gar Acc Com Traps Triggered 64 | . 1 . . . . 2 . . . 5 7 1 7 1 8 1 5 1 . 3 5 4 2 . 4 . 1 4 2 Indirectly 8 | . . . . . . . . . . . . 1 . . 2 . . . . 1 . . . . . . . 4 . Trap Hack Attempts . | . . . . . . . . . . . . . . . . . . . . . . . . . . . . . . Triggered . | . . . . . . . . . . . . . . . . . . . . . . . . . . . . . . Disarmed . | . . . . . . . . . . . . . . . . . . . . . . . . . . . . . . Reprogrammed . | . . . . . . . . . . . . . . . . . . . . . . . . . . . . . . Reused . | . . . . . . . . . . . . . . . . . . . . . . . . . . . . . . Traps Extracted . | . . . . . . . . . . . . . . . . . . . . . . . . . . . . . . Installed . | . . . . . . . . . . . . . . . . . . . . . . . . . . . . . . Triggered 2 | . . . . . . . . . . . . . . . . . . . . 1 . 1 . . . . . . . Machines | -11 -10 -10 -10 -9 -8 -8 -8 -8 -8 -6 -6 -5 -5 -5 -5 -4 -4 -4 -4 -3 -3 -3 -3 -2 -2 -2 -2 -1 -1 ---------- Run | Jun Mat Min Exi Min Mat Gar Mat Sto Rec Fac Gar Fac Gar Fac Gar Fac Gar Fac Gar Res Gar Res Gar Res Gar Res Gar Acc Com Machines Disabled 102 | . . . . . . 3 5 2 . 3 . 25 3 6 5 1 5 . 3 5 1 4 6 . 6 5 5 2 7 Max in Single Turn 8 | . . . . . . 1 1 . . 1 . 8 1 1 1 1 1 . 1 2 1 1 1 . 1 1 2 1 1 Garrison Access 2 | . . . . . . . . . . . . . . . . . . . . . . 1 . . . . . 1 . Garrison Relay 26 | . . . . . . . . . . . . . 2 . 4 . 4 . 2 . 1 . 5 . 5 . 3 . . Machines Repaired . | . . . . . . . . . . . . . . . . . . . . . . . . . . . . . . Machines Sabotaged . | . . . . . . . . . . . . . . . . . . . . . . . . . . . . . . Overloaded Fab Kills . | . . . . . . . . . . . . . . . . . . . . . . . . . . . . . . Hacking | -11 -10 -10 -10 -9 -8 -8 -8 -8 -8 -6 -6 -5 -5 -5 -5 -4 -4 -4 -4 -3 -3 -3 -3 -2 -2 -2 -2 -1 -1 --------- Run | Jun Mat Min Exi Min Mat Gar Mat Sto Rec Fac Gar Fac Gar Fac Gar Fac Gar Fac Gar Res Gar Res Gar Res Gar Res Gar Acc Com Machines Accessed 108 | . 1 . 1 . 1 2 9 6 10 7 2 11 2 1 2 1 2 7 2 5 1 10 3 2 2 1 2 10 5 Terminals 85 | . 1 . . . . 2 9 6 5 5 2 8 2 . 2 . 2 5 2 3 1 8 3 1 2 . 2 9 5 Fabricators 5 | . . . . . . . . . . 1 . 2 . . . . . . . 1 . 1 . . . . . . . Repair Stations . | . . . . . . . . . . . . . . . . . . . . . . . . . . . . . . Recycling Units 5 | . . . . . . . . . 5 . . . . . . . . . . . . . . . . . . . . Scanalyzers 1 | . . . . . . . . . . . . . . . . . . 1 . . . . . . . . . . . Garrison Access 11 | . . . . . 1 . . . . 1 . 1 . 1 . 1 . 1 . 1 . 1 . 1 . 1 . 1 . Total Hacks 200 | . 2 . 1 . 1 3 27 12 23 11 2 18 2 1 4 1 3 15 3 12 1 18 5 3 3 1 4 15 9 Successful 69 | . 1 . 1 . 1 . 9 3 9 2 2 7 1 1 1 1 2 7 1 6 . 3 1 1 1 1 1 5 1 Failed 131 | . 1 . . . . 3 18 9 14 9 . 11 1 . 3 . 1 8 2 6 1 15 4 2 2 . 3 10 8 Catastrophic 34 | . 1 . . . . 3 6 3 1 2 . 2 1 . 1 . . 2 . . 1 4 1 . 1 . 1 2 2 Database Lockouts . | . . . . . . . . . . . . . . . . . . . . . . . . . . . . . . Manual 80 | . 2 . 1 . . . 17 5 4 4 . 2 . . . . . 10 . 9 . 13 . 1 . . . 6 6 Terminals 167 | . 2 . . . . 3 27 12 14 8 2 14 2 . 4 . 3 9 3 10 1 16 5 2 3 . 4 14 9 Fabricators 7 | . . . . . . . . . . 2 . 3 . . . . . . . 1 . 1 . . . . . . . Repair Stations . | . . . . . . . . . . . . . . . . . . . . . . . . . . . . . . Recycling Units 9 | . . . . . . . . . 9 . . . . . . . . . . . . . . . . . . . . Scanalyzers 5 | . . . . . . . . . . . . . . . . . . 5 . . . . . . . . . . . Garrison Access 11 | . . . . . 1 . . . . 1 . 1 . 1 . 1 . 1 . 1 . 1 . 1 . 1 . 1 . Terminal Hacks 35 | . 1 . 1 . . . 5 3 5 . 2 5 1 . 1 . 2 . 1 1 . . 1 . 1 . 1 3 1 Prototype ID Bank 3 | . . . . . . . . . 3 . . . . . . . . . . . . . . . . . . . . Open Door 4 | . . . . . . . . 2 . . . . . . . . . . . . . . . . . . . 2 . Open DSF 1 | . . . . . . . . . . . . 1 . . . . . . . . . . . . . . . . . Branch Access Points 3 | . 1 . . . . . 1 . . . . 1 . . . . . . . . . . . . . . . . . Emergency Access Points 3 | . . . . . . . . . . . . . 1 . . . 1 . . . . . . . . . 1 . . Unreport Threat 5 | . . . . . . . 2 . 1 . . 2 . . . . . . . . . . . . . . . . . Locate Traps 3 | . . . . . . . 1 1 . . . . . . . . . . . 1 . . . . . . . . . Zone Layout 4 | . . . . . . . 1 . 1 . . 1 . . . . . . . . . . . . . . . 1 . Garrison Registry 3 | . . . . . . . . . . . 1 . . . 1 . . . . . . . 1 . . . . . . Patrol Navigation 2 | . . . . . . . . . . . 1 . . . . . . . 1 . . . . . . . . . . Security Stations 2 | . . . . . . . . . . . . . . . . . 1 . . . . . . . 1 . . . . EX-Prototype ID Bank 1 | . . . 1 . . . . . . . . . . . . . . . . . . . . . . . . . . Disengage Seal 1 | . . . . . . . . . . . . . . . . . . . . . . . . . . . . . 1 Fabricator Hacks 2 | . . . . . . . . . . 1 . 1 . . . . . . . . . . . . . . . . . Network Status 1 | . . . . . . . . . . . . 1 . . . . . . . . . . . . . . . . . Build 1 | . . . . . . . . . . 1 . . . . . . . . . . . . . . . . . . . Repair Station Hacks . | . . . . . . . . . . . . . . . . . . . . . . . . . . . . . . Recycling Unit Hacks 4 | . . . . . . . . . 4 . . . . . . . . . . . . . . . . . . . . Retrieve Components 4 | . . . . . . . . . 4 . . . . . . . . . . . . . . . . . . . . Scanalyzer 5 | . . . . . . . . . . . . . . . . . . 5 . . . . . . . . . . . Insert Component 2 | . . . . . . . . . . . . . . . . . . 2 . . . . . . . . . . . Analyze 3 | . . . . . . . . . . . . . . . . . . 3 . . . . . . . . . . . Garrison Access Hacks 11 | . . . . . 1 . . . . 1 . 1 . 1 . 1 . 1 . 1 . 1 . 1 . 1 . 1 . Unlock Access 10 | . . . . . 1 . . . . 1 . 1 . 1 . 1 . 1 . 1 . 1 . 1 . 1 . . . Seal Access 1 | . . . . . . . . . . . . . . . . . . . . . . . . . . . . 1 . Unauthorized Hacks 12 | . . . . . . . 4 . . . . . . . . . . 1 . 4 . 2 . . . . . 1 . Terminals 11 | . . . . . . . 4 . . . . . . . . . . 1 . 3 . 2 . . . . . 1 . Assimilate 1 | . . . . . . . . . . . . . . . . . . . . . . . . . . . . 1 . Botnet 8 | . . . . . . . 4 . . . . . . . . . . . . 2 . 2 . . . . . . . Operators 2 | . . . . . . . . . . . . . . . . . . 1 . 1 . . . . . . . . . Fabricators 1 | . . . . . . . . . . . . . . . . . . . . 1 . . . . . . . . . Liberate 1 | . . . . . . . . . . . . . . . . . . . . 1 . . . . . . . . . Repair Stations . | . . . . . . . . . . . . . . . . . . . . . . . . . . . . . . Recycling Units . | . . . . . . . . . . . . . . . . . . . . . . . . . . . . . . Scanalyzers . | . . . . . . . . . . . . . . . . . . . . . . . . . . . . . . Garrison Access . | . . . . . . . . . . . . . . . . . . . . . . . . . . . . . . Data Cores Recovered 2 | . . . . . . . . . . . . . . . . . . . . . . 1 . . . . . . 1 Used . | . . . . . . . . . . . . . . . . . . . . . . . . . . . . . . Hacking Detections 81 | . 1 . . . . 2 8 5 6 6 . 9 2 . 2 . 1 6 2 4 1 8 3 1 2 1 1 6 4 Full Trace Events 4 | . . . . . . 1 . 1 . . . . . . . . . . . . . 1 . . . . . 1 . Feedback Events . | . . . . . . . . . . . . . . . . . . . . . . . . . . . . . . Feedback Blocked . | . . . . . . . . . . . . . . . . . . . . . . . . . . . . . . Robot Schematics Acquired . | . . . . . . . . . . . . . . . . . . . . . . . . . . . . . . Robots Built . | . . . . . . . . . . . . . . . . . . . . . . . . . . . . . . Authchips . | . . . . . . . . . . . . . . . . . . . . . . . . . . . . . . Time . | . . . . . . . . . . . . . . . . . . . . . . . . . . . . . . Total Robot Build Rating . | . . . . . . . . . . . . . . . . . . . . . . . . . . . . . . Part Schematics Acquired 2 | . . . . . . . . . . . . . . . . . . 2 . . . . . . . . . . . Parts Built 2 | . . . . . . . . . . 2 . . . . . . . . . . . . . . . . . . . Authchips . | . . . . . . . . . . . . . . . . . . . . . . . . . . . . . . Time 58 | . . . . . . . . . . 58 . . . . . . . . . . . . . . . . . . . Total Part Build Rating 14 | . . . . . . . . . . 14 . . . . . . . . . . . . . . . . . . . Parts Repaired . | . . . . . . . . . . . . . . . . . . . . . . . . . . . . . . Time . | . . . . . . . . . . . . . . . . . . . . . . . . . . . . . . Parts Recycled . | . . . . . . . . . . . . . . . . . . . . . . . . . . . . . . Recycled Matter . | . . . . . . . . . . . . . . . . . . . . . . . . . . . . . . Retrieved Matter . | . . . . . . . . . . . . . . . . . . . . . . . . . . . . . . Retrieved Components 14 | . . . . . . . . . 14 . . . . . . . . . . . . . . . . . . . . Parts Scanalyzed 2 | . . . . . . . . . . . . . . . . . . 2 . . . . . . . . . . . Part Schematics Acquired 2 | . . . . . . . . . . . . . . . . . . 2 . . . . . . . . . . . Parts Damaged 1 | . . . . . . . . . . . . . . . . . . 1 . . . . . . . . . . . Bothacking | -11 -10 -10 -10 -9 -8 -8 -8 -8 -8 -6 -6 -5 -5 -5 -5 -4 -4 -4 -4 -3 -3 -3 -3 -2 -2 -2 -2 -1 -1 ------------ Run | Jun Mat Min Exi Min Mat Gar Mat Sto Rec Fac Gar Fac Gar Fac Gar Fac Gar Fac Gar Res Gar Res Gar Res Gar Res Gar Acc Com Used RIF Installer 12 | . . . . . . 1 . . . . 1 . 1 . 2 . 1 . 1 . 2 . 1 . 1 . 1 . . Coupler Efficiency 2 | . . . . . . . . . . . . . . . . . 1 . . . . . . . . . 1 . . Code Merge 1 | . . . . . . . . . . . . . . . . . . . . . 1 . . . . . . . . Command Fork 1 | . . . . . . . . . . . . . . . . . . . . . . . . . 1 . . . . Threat Obfuscator 1 | . . . . . . . . . . . . . . . . . . . . . 1 . . . . . . . . Signal Jammer 1 | . . . . . . . . . . . . . . . . . . . . . . . 1 . . . . . . Robot Detection 1 | . . . . . . . . . . . . . . . 1 . . . . . . . . . . . . . . Watcher Feeds 1 | . . . . . . . . . . . . . . . 1 . . . . . . . . . . . . . . Alert ID Control 1 | . . . . . . . . . . . 1 . . . . . . . . . . . . . . . . . . Structural Interface 1 | . . . . . . . . . . . . . 1 . . . . . . . . . . . . . . . . Autooverride 1 | . . . . . . . . . . . . . . . . . . . 1 . . . . . . . . . . Robots Hacked 116 | . . . . . . . . . . . . . . . . 5 1 . 11 2 6 9 8 . 16 17 7 22 12 Non-combat 17 | . . . . . . . . . . . . . . . . 1 . . . 2 . 3 . . 1 3 . 7 . Combat 99 | . . . . . . . . . . . . . . . . 4 1 . 11 . 6 6 8 . 15 14 7 15 12 Autooverrided 11 | . . . . . . . . . . . . . . . . . . . . . . 1 1 . 2 2 1 3 1 Robot Hacks Applied 127 | . . . . . . . . . . . . . . . . 6 1 . 11 14 6 8 8 . 14 15 7 26 11 no_distress 1 | . . . . . . . . . . . . . . . . . . . . . . . . . . . . 1 . drop_inventory 8 | . . . . . . . . . . . . . . . . . . . . . . 2 . . . 2 . 4 . purge_threat 13 | . . . . . . . . . . . . . . . . . . . . 9 . . . . . . . 4 . locate_traps 2 | . . . . . . . . . . . . . . . . . . . . 2 . . . . . . . . . reprogram_traps 1 | . . . . . . . . . . . . . . . . . . . . 1 . . . . . . . . . block_reporting 3 | . . . . . . . . . . . . . . . . . . . . 1 . . . . . . . 2 . summon_haulers 1 | . . . . . . . . . . . . . . . . . . . . 1 . . . . . . . . . mark_security 1 | . . . . . . . . . . . . . . . . 1 . . . . . . . . . . . . . find_garrison 1 | . . . . . . . . . . . . . . . . . . . . . . . . . . . . 1 . overload_power 1 | . . . . . . . . . . . . . . . . . . . . . . . . . . . . 1 . amplify_resonance 5 | . . . . . . . . . . . . . . . . . . . . . . . 2 . 1 . . 2 . go_dormant 1 | . . . . . . . . . . . . . . . . . . . . . . . . . . . . 1 . overwrite_iff 27 | . . . . . . . . . . . . . . . . . . . . . 5 2 4 . 8 6 1 1 . streamctrl_high 1 | . . . . . . . . . . . . . . . . . . . 1 . . . . . . . . . . formatsys_low 1 | . . . . . . . . . . . . . . . . . . . . . . . . . . . . 1 . formatsys_high 59 | . . . . . . . . . . . . . . . . 5 1 . 10 . 1 4 2 . 5 6 6 8 11 formatsys_deep 1 | . . . . . . . . . . . . . . . . . . . . . . . . . . 1 . . . Relay Couplers Released 115 | . . . . . . . . . . . . . 8 . 15 . 21 . 8 . 5 . 23 . 20 3 12 . . Machine Destruction 105 | . . . . . . . . . . . . . 8 . 15 . 17 . 8 . 5 . 20 . 20 . 12 . . Programmers 10 | . . . . . . . . . . . . . . . . . 4 . . . . . 3 . . 3 . . . Attached 45 | . . . . . . . . . . . . . . . . 4 1 . 5 3 1 2 3 . 8 4 5 2 7 Merged Code Value 173 | . . . . . . . . . . . . . . . . . . . . . . . 63 . 59 . 51 . . Fabnet Peak Effective % . | . . . . . . . . . . . . . . . . . . . . . . . . . . . . . . Robots Rewired 21 | . . 2 . . . . . . 10 . . . 2 . . . 3 . . . . . . . 4 . . . . Allies Hacked 3 | . . . . . . . . . . . . . . . . . 1 . . . . . . . . 1 . . 1 Hacks Repelled . | . . . . . . . . . . . . . . . . . . . . . . . . . . . . . . Allies | -11 -10 -10 -10 -9 -8 -8 -8 -8 -8 -6 -6 -5 -5 -5 -5 -4 -4 -4 -4 -3 -3 -3 -3 -2 -2 -2 -2 -1 -1 -------- Run | Jun Mat Min Exi Min Mat Gar Mat Sto Rec Fac Gar Fac Gar Fac Gar Fac Gar Fac Gar Res Gar Res Gar Res Gar Res Gar Acc Com Total Allies 133 | . . 4 . . . . . 1 10 . . . 3 . . 5 6 . 11 . 6 7 6 . 20 19 7 14 14 Largest Group 10 | . . 3 3 1 . . . 1 8 8 . . 3 3 . 5 7 . 10 10 3 3 2 . 6 5 4 10 9 Highest-Rated Group 1025 | . . 62 62 16 . . . 100 128 128 . . 284 284 . 346 466 . 380 377 141 152 94 . 398 306 207 748 1025 Highest-Rated Ally 212 | . . 31 31 16 . . . 100 95 34 . . 119 119 . 137 137 . 58 58 58 58 64 . 99 178 69 178 212 Total Orders 43 | . . . . . . . . . 2 . . . 2 4 . 8 6 . 3 . . . . . 1 . 4 5 8 STAY 19 | . . . . . . . . . . . . . 1 2 . . 4 . 2 . . . . . 1 . 2 . 7 FOLLOW 9 | . . . . . . . . . . . . . 1 2 . . 2 . 1 . . . . . . . 2 . 1 COLLECT 2 | . . . . . . . . . 2 . . . . . . . . . . . . . . . . . . . . EXPLORE 12 | . . . . . . . . . . . . . . . . 7 . . . . . . . . . . . 5 . RETURN 1 | . . . . . . . . . . . . . . . . 1 . . . . . . . . . . . . . Ally Attacks 725 | . . 6 . 3 . . . 16 6 21 . . 5 25 . 16 78 . 26 31 13 9 18 . 57 56 49 125 165 Total Damage 41128 | . . 45 . 44 . . . 580 215 677 . . 272 1512 . 570 3875 . 693 748 397 295 429 . 2449 1979 1872 5618 18858 Kills 184 | . . 2 . . . . . 8 5 4 . . 1 11 . 4 19 . 7 1 1 . 4 . 6 11 7 20 73 Allies Corrupted 8 | . . . . . . . . . . . . . . . . . 1 . . . . 2 . . . . . 2 3 Allies Melted 2 | . . . . . . . . . . . . . . . . . . . . . 1 . . . 1 . . . . Intel | -11 -10 -10 -10 -9 -8 -8 -8 -8 -8 -6 -6 -5 -5 -5 -5 -4 -4 -4 -4 -3 -3 -3 -3 -2 -2 -2 -2 -1 -1 ------- Run | Jun Mat Min Exi Min Mat Gar Mat Sto Rec Fac Gar Fac Gar Fac Gar Fac Gar Fac Gar Res Gar Res Gar Res Gar Res Gar Acc Com Robot Analysis Total . | . . . . . . . . . . . . . . . . . . . . . . . . . . . . . . Derelict Logs Recovered 3 | . . 1 . 2 . . . . . . . . . . . . . . . . . . . . . . . . . Drone Launches 13 | . . . . . . . . . . . . . . . . 8 . . . . . . . . . . . 5 . Drone Recoveries 6 | . . . . . . . . . . . . . . . . 4 . . . . . . . . . . . 2 . Exploration | -11 -10 -10 -10 -9 -8 -8 -8 -8 -8 -6 -6 -5 -5 -5 -5 -4 -4 -4 -4 -3 -3 -3 -3 -2 -2 -2 -2 -1 -1 ------------- Run | Jun Mat Min Exi Min Mat Gar Mat Sto Rec Fac Gar Fac Gar Fac Gar Fac Gar Fac Gar Res Gar Res Gar Res Gar Res Gar Acc Com Turns Passed 25478 | 26 109 712 297 527 249 804 1405 386 2365 1085 344 637 676 616 671 451 668 422 636 1537 422 2576 784 325 2199 1136 595 1060 1758 Spaces Moved 25856 | 37 182 557 279 460 168 537 987 249 1560 1702 575 1239 858 1063 897 453 808 646 806 989 459 3315 925 174 720 589 815 1434 2373 Core 207 | 37 170 . . . . . . . . . . . . . . . . . . . . . . . . . . . . Treads 8150 | . . . . . . . . . 56 265 . . . . . . . 324 618 . . 1765 925 174 193 25 715 1434 1656 Legs 4138 | . . . . . . 413 179 . . . . . . . . . 554 46 188 232 459 1550 . . . 414 100 . 3 Wheels 3212 | . 12 557 279 460 168 124 808 249 186 369 . . . . . . . . . . . . . . . . . . . Hover 2117 | . . . . . . . . . . . . . . . . 199 254 276 . 757 . . . . 527 104 . . . Flight 8032 | . . . . . . . . . 1318 1068 575 1239 858 1063 897 254 . . . . . . . . . 46 . . 714 Fastest Speed 32 | 50 50 90 105 105 80 80 100 100 48 39 39 39 39 39 39 64 36 50 50 59 59 59 59 59 148 76 47 47 32 Average Speed 68 | 50 53 104 105 110 87 112 103 100 58 46 39 39 41 40 39 70 51 57 50 132 59 59 59 179 256 134 50 47 43 Slowest Speed 290 | 50 100 105 105 140 110 190 190 100 128 48 39 39 75 75 75 75 95 95 109 172 59 59 59 290 290 290 76 47 56 Overloaded Moves . | . . . . . . . . . . . . . . . . . . . . . . . . . . . . . . Propulsion Burnouts . | . . . . . . . . . . . . . . . . . . . . . . . . . . . . . . Robots Hopped 13 | . . . . . . . . . 3 1 . 3 1 4 . . . . . . . . . . . . . . 1 Cave-ins Triggered . | . . . . . . . . . . . . . . . . . . . . . . . . . . . . . . Exploration Rate (%) 54 | 3 32 92 70 92 19 65 73 47 97 48 60 39 79 21 91 20 87 19 80 22 39 77 63 12 86 16 82 46 45 Regions Visited 29 Branch Regions 6 Pre-discovered Areas 3 | . . 1 . 2 . . . . . . . . . . . . . . . . . . . . . . . . . Known Exits Taken 12 | . 1 . . . 1 . 1 . . 1 . 1 . 1 . 1 . 1 . 1 . 1 . 1 . 1 . . . Unknown Exits Taken 7 | 1 . 1 1 1 . . . 1 1 . . . . . . . . . . . . . . . . . . 1 . Scrap Searched 5 | . . 1 . 4 . . . . . . . . . . . . . . . . . . . . . . . . . Spaces Dug 224 | . . . . . 3 . 3 5 . 6 . 45 9 . 3 1 6 11 . 1 . 46 3 . . 38 . 6 38 Terrain Destroyed 1571 | . . 10 . . 14 36 80 9 15 30 10 97 112 9 61 6 34 13 1 94 86 144 47 1 171 235 20 35 201 Melee . | . . . . . . . . . . . . . . . . . . . . . . . . . . . . . . Projectile 574 | . . . . . 8 1 28 9 15 12 1 34 31 9 12 6 30 13 1 18 8 109 36 1 19 48 4 25 96 AOE 997 | . . 10 . . 6 35 52 . . 18 9 63 81 . 49 . 4 . . 76 78 35 11 . 152 187 16 10 105 Terrain Rammed . | . . . . . . . . . . . . . . . . . . . . . . . . . . . . . . Walls Destroyed . | . . . . . . . . . . . . . . . . . . . . . . . . . . . . . . Machines Disabled . | . . . . . . . . . . . . . . . . . . . . . . . . . . . . . . Actions | -11 -10 -10 -10 -9 -8 -8 -8 -8 -8 -6 -6 -5 -5 -5 -5 -4 -4 -4 -4 -3 -3 -3 -3 -2 -2 -2 -2 -1 -1 --------- Run | Jun Mat Min Exi Min Mat Gar Mat Sto Rec Fac Gar Fac Gar Fac Gar Fac Gar Fac Gar Res Gar Res Gar Res Gar Res Gar Acc Com Total 31420 | 43 193 653 282 476 245 658 1235 338 2932 1869 645 1330 1101 1199 1125 548 960 674 941 1100 555 3694 1070 184 975 817 968 1712 2898 Wait 2410 | . . 51 . 11 10 50 92 36 1204 42 7 24 72 72 66 41 41 7 7 14 38 143 29 . 32 70 76 91 84 Move 25805 | 36 181 556 278 459 167 536 986 248 1554 1699 573 1233 855 1055 896 452 807 645 805 989 458 3315 924 174 719 588 814 1433 2370 Hop 11 | . . . . . . . . . 2 1 . 3 1 3 . . . . . . . . . . . . . . 1 Pick Up 303 | 4 7 9 3 3 30 10 32 4 10 15 . 4 7 10 8 3 8 2 12 5 3 23 16 1 18 14 10 13 19 Fast Attach 87 | 1 2 1 . . 2 2 6 2 3 . . 2 3 2 . 2 . . . . 1 13 1 2 . 10 . 4 28 Attach 92 | 2 1 3 . 1 4 6 5 . . 3 . 3 4 2 . 6 1 . 4 4 . 5 3 1 5 5 7 3 14 Detach 22 | . . . . . . 2 . . . . . . 3 1 . 1 . . . . . 1 1 1 . 2 1 2 7 Swap 163 | . 1 2 1 . 2 2 4 1 . 2 1 1 1 3 8 5 9 3 7 12 6 18 8 1 8 11 5 12 29 Drop 256 | . 1 1 . . 15 1 21 5 42 9 . 2 8 10 7 4 4 3 6 3 . 22 13 3 11 17 6 16 26 Fire 1894 | . . 19 . 2 15 44 89 42 66 97 48 58 65 41 67 33 52 14 100 73 49 152 75 1 87 100 49 138 318 Melee . | . . . . . . . . . . . . . . . . . . . . . . . . . . . . . . Ram 2 | . . . . . . . . . . . . . . . . . . . . . . 2 . . . . . . . Kick . | . . . . . . . . . . . . . . . . . . . . . . . . . . . . . . Crush . | . . . . . . . . . . . . . . . . . . . . . . . . . . . . . . Escape Stasis 193 | . . . . . . 5 . . . 1 16 . 51 . 73 . 4 . . . . . . . 41 . . . 2 Rewire 181 | . . 11 . . . . . . 51 . . . 31 . . . 34 . . . . . . . 54 . . . . Trap . | . . . . . . . . . . . . . . . . . . . . . . . . . . . . . . Miscellaneous 1 | . . . . . . . . . . . . . . . . 1 . . . . . . . . . . . . . Route ------- -11/Junkyard -10/Materials (discovered 2 exits: *Min x2) -10/Mines (discovered 3 exits: [*Mat x2] / *Exi) -10/Exiles -9/Mines -8/Materials -8/Garrison (discovered 3 exits: *Mat x3) -8/Materials (discovered 4 exits: [*Fac x2] / *Sto x2) -8/Storage -8/Recycling -6/Factory (discovered 4 exits: *Fac x2 / *Low / Gar) -6/Garrison (discovered 3 exits: *Fac x3) -5/Factory (discovered 5 exits: *Fac x2 / *Upp x2 / Gar) -5/Garrison (discovered 3 exits: *Fac x3) -5/Factory (discovered 3 exits: *Fac x2 / Gar) -5/Garrison (discovered 3 exits: *Fac x3) -4/Factory -4/Garrison (discovered 3 exits: *Fac x3) -4/Factory (discovered 4 exits: *Res x2 / [*Upp] / Gar) -4/Garrison (discovered 3 exits: *Res x3) -3/Research -3/Garrison -3/Research (discovered 2 exits: *Res / Gar) -3/Garrison (discovered 3 exits: *Res x3) -2/Research -2/Garrison (discovered 3 exits: *Res x3) -2/Research -2/Garrison (discovered 2 exits: *Acc x2) -1/Access -1/Command To Epsilon Eridani History --------- Turn | Location | Event 3 | -11/Junkyard | Discovered new exit (range 16) 27 | -11/Junkyard | Entered Materials 81 | -10/Materials | Identified exit to Mines 136 | -10/Materials | Entered Mines 292 | -10/Mines | Assembled infested the area 297 | -10/Mines | Assisted by a Guerilla fighting off Assembled 308 | -10/Mines | Build established: Mutant 427 | -10/Mines | Learned Materials stockpile data 476 | -10/Mines | Learned location of Storage (-8) 574 | -10/Mines | Deemed a non-threat by the Exiles lab entrance 574 | -10/Mines | Discovered new exit (range 6) 608 | -10/Mines | Discovered new exit (range 4) 697 | -10/Mines | Discovered new exit (range 9) 848 | -10/Mines | Entered Exiles 848 | -10/Exiles | Accompanied by 3 allies 873 | -10/Exiles | Met 8R-AWN 878 | -10/Exiles | Led the pair of lost Derelicts to a safe place 889 | -10/Exiles | Met EX-HEX 921 | -10/Exiles | Met EX-BIN 934 | -10/Exiles | Aligned with FarCom system 935 | -10/Exiles | Given EX-Vault access code 960 | -10/Exiles | Opened EX-Vault 969 | -10/Exiles | Found Lightpack 2.0 972 | -10/Exiles | Found Gui. Plasma Cannon 977 | -10/Exiles | Found AWS/Thermal 1000 | -10/Exiles | Warned to stay clear of 0b10 Research branches 1029 | -10/Exiles | Met EX-DEC 1135 | -10/Exiles | Discovered new exit (range 10) 1145 | -10/Exiles | Stole three prototypes: Lightpack 2.0, AWS/Thermal, Gui. Plasma Cannon 1145 | -10/Exiles | Entered Mines 1145 | -9/Mines | Accompanied by 1 ally 1166 | -9/Mines | A weapon hastily lodged in a ceiling crevice suddenly fell to the ground 1214 | -9/Mines | YI-UF0 nonchalantly dropped a Grenade Launcher on the ground 1252 | -9/Mines | Discovered new exit (range 15) 1361 | -9/Mines | Destroyed YI-UF0 1408 | -9/Mines | Learned location of Zion (-7) 1672 | -9/Mines | Entered Materials 1672 | -8/Materials | Evolved 4 slots: Propulsion x2, Utility x1, Weapon x1 1908 | -8/Materials | Identified exit to Garrison 1921 | -8/Materials | Entered Garrison 1936 | -8/Garrison | Installed Relay Interface Framework 1980 | -8/Garrison | Triggered checkpoint 2089 | -8/Garrison | Lost 4 parts (3n1w) 2092 | -8/Garrison | Triggered checkpoint 2176 | -8/Garrison | Discovered new exit (range 10) 2252 | -8/Garrison | Triggered checkpoint 2364 | -8/Garrison | Discovered new exit (range 10) 2385 | -8/Garrison | Build established: Hauler-Mutant 2454 | -8/Garrison | Triggered checkpoint 2621 | -8/Garrison | Discovered new exit (range 9) 2725 | -8/Garrison | Entered Materials 3222 | -8/Materials | Discovered new exit (range 6) 3430 | -8/Materials | Discovered new exit (range 7) 3689 | -8/Materials | Identified exit to Storage 3730 | -8/Materials | Discovered new exit (range 13) 4130 | -8/Materials | Entered Storage 4192 | -8/Storage | Core integrity fell below 50% 4211 | -8/Storage | Build established: Hauler-Skirmisher 4322 | -8/Storage | Met 01-MTF 4514 | -8/Storage | Discovered new exit (range 3) 4516 | -8/Storage | Entered Recycling 4516 | -8/Recycling | Accompanied by 1 ally (01-MTF) 4521 | -8/Recycling | 01-MTF left 4555 | -8/Recycling | Build established: Hauler-Mutant 4712 | -8/Recycling | Found Scrap Engine 5152 | -8/Recycling | Build established: Construct 5768 | -8/Recycling | Discovered new exit (range 6) 6046 | -8/Recycling | Build established: Commander-Construct 6881 | -8/Recycling | Entered Factory 6881 | -6/Factory | Accompanied by 8 allies 6881 | -6/Factory | Evolved 4 slots: Power x1, Propulsion x1, Utility x1, Weapon x1 6883 | -6/Factory | FarCom data flow suspended 6949 | -6/Factory | Fabricated Phase Gun (x2) 7253 | -6/Factory | Found Rocket Array 7254 | -6/Factory | Found Rocket Array 7259 | -6/Factory | Found Rocket Array 7350 | -6/Factory | Discovered new exit (range 16) 7369 | -6/Factory | Discovered new exit (range 13) 7375 | -6/Factory | Identified exit to Lower Caves 7380 | -6/Factory | Identified exit to Factory 7729 | -6/Factory | Build established: Construct 7749 | -6/Factory | Identified exit to Garrison 7804 | -6/Factory | Discovered exit to Factory (range 15) 7966 | -6/Factory | Entered Garrison 8011 | -6/Garrison | Triggered checkpoint 8148 | -6/Garrison | Discovered exit to Factory (range 12) 8190 | -6/Garrison | Triggered checkpoint 8202 | -6/Garrison | Discovered exit to Factory (range 10) 8206 | -6/Garrison | Discovered exit to Factory (range 51) 8206 | -6/Garrison | Discovered exit to Factory (range 60) 8206 | -6/Garrison | Discovered exit to Factory (range 7) 8244 | -6/Garrison | Triggered checkpoint 8290 | -6/Garrison | Triggered checkpoint 8307 | -6/Garrison | Expanded RIF knowledge: Alert ID Control 8310 | -6/Garrison | Entered Factory 8310 | -5/Factory | Evolved 2 slots: Utility x2 8371 | -5/Factory | Identified exit to DSF 8408 | -5/Factory | Discovered new exit (range 9) 8458 | -5/Factory | Identified exit to Upper Caves 8610 | -5/Factory | First assault squad dispatched 8662 | -5/Factory | Discovered new exit (range 6) 8669 | -5/Factory | Found Prototype Launcher 8669 | -5/Factory | Identified Mni. Smartbomb Launcher 8907 | -5/Factory | Discovered new exit (range 12) 8947 | -5/Factory | Identified exit to Garrison 8947 | -5/Factory | Entered Garrison 8993 | -5/Garrison | Spotted B-75 Beast 9000 | -5/Garrison | Triggered checkpoint 9059 | -5/Garrison | Destroyed B-75 Beast 9147 | -5/Garrison | Destroyed 13 combat bots 9285 | -5/Garrison | Expanded RIF knowledge: Structural Interface 9301 | -5/Garrison | Discovered new exit (range 9) 9342 | -5/Garrison | Rewired Executioner 9352 | -5/Garrison | Rewired Executioner 9376 | -5/Garrison | Triggered checkpoint 9426 | -5/Garrison | Garrison Relay disabled 9456 | -5/Garrison | Discovered new exit (range 10) 9497 | -5/Garrison | Rescued a captive Derelict 9540 | -5/Garrison | Triggered checkpoint 9561 | -5/Garrison | Discovered new exit (range 13) 9573 | -5/Garrison | Garrison Relay disabled 9584 | -5/Garrison | Triggered checkpoint 9623 | -5/Garrison | Entered Factory 9623 | -5/Factory | Accompanied by 3 allies 9624 | -5/Factory | Discovered new exit (range 4) 9753 | -5/Factory | Found Prototype Launcher 9753 | -5/Factory | Identified Tesla Bomb Launcher 9827 | -5/Factory | Discovered new exit (range 7) 9923 | -5/Factory | First assault squad dispatched 9964 | -5/Factory | Identified exit to Garrison 10239 | -5/Factory | Entered Garrison 10294 | -5/Garrison | Triggered checkpoint 10324 | -5/Garrison | Triggered checkpoint 10348 | -5/Garrison | Destroyed 14 combat bots 10352 | -5/Garrison | Triggered checkpoint 10403 | -5/Garrison | Garrison Relay disabled 10500 | -5/Garrison | Discovered new exit (range 14) 10564 | -5/Garrison | Discovered new exit (range 7) 10620 | -5/Garrison | Triggered checkpoint 10630 | -5/Garrison | Garrison Relay disabled 10679 | -5/Garrison | Expanded RIF knowledge: Watcher Feeds 10694 | -5/Garrison | Discovered new exit (range 63) 10694 | -5/Garrison | Discovered new exit (range 30) 10694 | -5/Garrison | Discovered new exit (range 29) 10708 | -5/Garrison | Triggered checkpoint 10736 | -5/Garrison | Build established: Bothacker-Construct 10752 | -5/Garrison | Expanded RIF knowledge: Robot Detection 10766 | -5/Garrison | Garrison Relay disabled 10778 | -5/Garrison | Triggered checkpoint 10826 | -5/Garrison | Spotted B-75 Beast 10876 | -5/Garrison | Triggered checkpoint 10877 | -5/Garrison | Garrison Relay disabled 10910 | -5/Garrison | Entered Factory 10910 | -4/Factory | Evolved 2 slots: Propulsion x1, Weapon x1 10924 | -4/Factory | Identified exit to Garrison 11064 | -4/Factory | Build established: Botlord-Construct 11160 | -4/Factory | First assault squad dispatched 11177 | -4/Factory | Found Imp. Powered Armor 11299 | -4/Factory | Garrison activated, responded to threat 11361 | -4/Factory | Entered Garrison 11361 | -4/Garrison | Accompanied by 5 allies 11372 | -4/Garrison | Spotted B-86 Titan 11377 | -4/Garrison | Triggered checkpoint 11435 | -4/Garrison | Triggered checkpoint 11438 | -4/Garrison | Spotted B-86 Titan 11440 | -4/Garrison | Build established: Bothacker-Construct 11460 | -4/Garrison | Triggered checkpoint 11561 | -4/Garrison | Garrison Relay disabled 11581 | -4/Garrison | Found embedded Infiltrators 11662 | -4/Garrison | Destroyed B-86 Titan 11662 | -4/Garrison | Triggered checkpoint 11686 | -4/Garrison | Discovered new exit (range 14) 11692 | -4/Garrison | Learned Factory security intel 11704 | -4/Garrison | Triggered checkpoint 11718 | -4/Garrison | Garrison Relay disabled 11827 | -4/Garrison | Discovered new exit (range 13) 11860 | -4/Garrison | Triggered checkpoint 11873 | -4/Garrison | Spotted Striker 11873 | -4/Garrison | Spotted Striker 11874 | -4/Garrison | Garrison Relay disabled 11876 | -4/Garrison | Destroyed Striker 11936 | -4/Garrison | Garrison Relay disabled 11981 | -4/Garrison | Expanded RIF knowledge: Coupler Efficiency 11987 | -4/Garrison | Discovered new exit (range 10) 12029 | -4/Garrison | Entered Factory 12083 | -4/Factory | Discovered new exit (range 15) 12171 | -4/Factory | Found Quantum Capacitor 12268 | -4/Factory | Build established: Botlord-Construct 12324 | -4/Factory | Found Quantum Capacitor 12337 | -4/Factory | Discovered new exit (range 16) 12375 | -4/Factory | Discovered new exit (range 4) 12407 | -4/Factory | Identified exit to Garrison 12451 | -4/Factory | Entered Garrison 12467 | -4/Garrison | Spotted Striker 12480 | -4/Garrison | Triggered checkpoint 12504 | -4/Garrison | Garrison Relay disabled 12565 | -4/Garrison | Spotted B-86 Titan 12565 | -4/Garrison | Triggered checkpoint 12578 | -4/Garrison | Destroyed B-86 Titan 12584 | -4/Garrison | Triggered checkpoint 12590 | -4/Garrison | Triggered checkpoint 12599 | -4/Garrison | Triggered checkpoint 12635 | -4/Garrison | Discovered new exit (range 9) 12676 | -4/Garrison | Garrison Relay disabled 12739 | -4/Garrison | Discovered new exit (range 12) 12746 | -4/Garrison | Expanded RIF knowledge: Autooverride 12875 | -4/Garrison | Discovered new exit (range 8) 13087 | -4/Garrison | Entered Research 13087 | -3/Research | Accompanied by 10 allies 13087 | -3/Research | Evolved 2 slots: Utility x2 13294 | -3/Research | Spotted B-86 Titan 13318 | -3/Research | Allies destroyed B-86 Titan 13661 | -3/Research | Found Gamma Bomb Array 13926 | -3/Research | Build established: Bothacker-Construct 14213 | -3/Research | System corruption reached 10% 14499 | -3/Research | Cargo convoy interrupted 14502 | -3/Research | Spotted Executioner 14510 | -3/Research | Destroyed Executioner 14515 | -3/Research | Spotted Striker 14524 | -3/Research | Destroyed Striker 14549 | -3/Research | Destroyed 8 combat bots 14624 | -3/Research | Identified exit to Garrison 14624 | -3/Research | Entered Garrison 14637 | -3/Garrison | Expanded RIF knowledge: Threat Obfuscation 14705 | -3/Garrison | Spotted B-86 Titan 14725 | -3/Garrison | Triggered checkpoint 14812 | -3/Garrison | Triggered checkpoint 14814 | -3/Garrison | Garrison Relay disabled 14927 | -3/Garrison | Triggered checkpoint 14934 | -3/Garrison | Triggered checkpoint 14976 | -3/Garrison | Expanded RIF knowledge: Code Merge 14998 | -3/Garrison | Discovered new exit (range 13) 15046 | -3/Garrison | Entered Research 15134 | -3/Research | Build established: Botlord-Construct 15176 | -3/Research | Found Fusion Bomb Launcher 16209 | -3/Research | Build established: Construct 16334 | -3/Research | Spotted B-86 Titan 16594 | -3/Research | First assault squad dispatched 16688 | -3/Research | Discovered new exit (range 10) 16704 | -3/Research | Identified exit to Research 17228 | -3/Research | Spotted B-86 Titan 17280 | -3/Research | Found Gamma Bomb Array 17397 | -3/Research | Spotted B-86 Titan 17513 | -3/Research | Cargo convoy interrupted 17622 | -3/Research | Identified exit to Garrison 17622 | -3/Research | Entered Garrison 17757 | -3/Garrison | Garrison Relay disabled 17828 | -3/Garrison | Triggered checkpoint 17830 | -3/Garrison | Spotted B-86 Titan 17833 | -3/Garrison | Triggered checkpoint 17843 | -3/Garrison | Triggered checkpoint 17843 | -3/Garrison | Destroyed B-86 Titan 17844 | -3/Garrison | Triggered checkpoint 17964 | -3/Garrison | Triggered checkpoint 18003 | -3/Garrison | Discovered exit to Research (range 12) 18003 | -3/Garrison | Discovered exit to Research (range 66) 18003 | -3/Garrison | Discovered exit to Research (range 49) 18026 | -3/Garrison | Triggered checkpoint 18046 | -3/Garrison | Expanded RIF knowledge: Signal Jamming 18054 | -3/Garrison | Garrison Relay disabled 18084 | -3/Garrison | Build established: Botlord-Construct 18125 | -3/Garrison | Garrison Relay disabled 18203 | -3/Garrison | Garrison Relay disabled 18211 | -3/Garrison | Garrison Relay disabled 18336 | -3/Garrison | Found Relay Coupler [Proto] 18337 | -3/Garrison | Found Relay Coupler [Proto] 18339 | -3/Garrison | System corruption reached 30% 18339 | -3/Garrison | Found Relay Coupler [Proto] 18341 | -3/Garrison | Found Relay Coupler [Proto] 18406 | -3/Garrison | Entered Research 18406 | -2/Research | Evolved 2 slots: Power x1, Utility x1 18696 | -2/Research | First assault squad dispatched 18731 | -2/Research | Identified exit to Garrison 18731 | -2/Research | Entered Garrison 18784 | -2/Garrison | Triggered checkpoint 18827 | -2/Garrison | Garrison Relay disabled 18992 | -2/Garrison | Spotted Striker 18992 | -2/Garrison | Spotted Striker 19013 | -2/Garrison | Assimilated Striker with formatsys_high 19088 | -2/Garrison | Spotted B-90 Cyclops 19101 | -2/Garrison | Triggered checkpoint 19124 | -2/Garrison | Triggered checkpoint 19237 | -2/Garrison | Destroyed B-90 Cyclops 19257 | -2/Garrison | P-80 Master assimilated allied Enforcer 9a 19505 | -2/Garrison | Discovered new exit (range 9) 19592 | -2/Garrison | Garrison Relay disabled 19701 | -2/Garrison | Destroyed 9 combat bots 19974 | -2/Garrison | Garrison Relay disabled 20479 | -2/Garrison | Discovered new exit (range 10) 20528 | -2/Garrison | Learned Research security intel 20552 | -2/Garrison | Triggered checkpoint 20607 | -2/Garrison | Garrison Relay disabled 20690 | -2/Garrison | Triggered checkpoint 20764 | -2/Garrison | Triggered checkpoint 20808 | -2/Garrison | Expanded RIF knowledge: Command Fork 20917 | -2/Garrison | Discovered new exit (range 9) 20930 | -2/Garrison | Entered Research 20930 | -2/Research | Accompanied by 1 ally 21172 | -2/Research | Found Prototype Processor 21172 | -2/Research | Identified Exp. Target Analyzer 21205 | -2/Research | First assault squad dispatched 21270 | -2/Research | Found Prototype Device 21270 | -2/Research | Identified Exp. Thermal Shield 21277 | -2/Research | P-80 Master assimilated allied Enforcer 9c 21326 | -2/Research | Assimilated ARC 9a with formatsys_deep 21380 | -2/Research | Spotted B-90 Cyclops 21415 | -2/Research | Cargo convoy interrupted 21428 | -2/Research | System corruption reached 10% 21464 | -2/Research | P-80 Master assimilated allied Terminator 9i 21547 | -2/Research | Destroyed B-90 Cyclops 21658 | -2/Research | Found Exp. Focal Shield 21691 | -2/Research | Found Adv. EM Disruption Field 21702 | -2/Research | Found Point Singularity Launcher 21844 | -2/Research | Destroyed 11 combat bots 21899 | -2/Research | Found Exp. Thermal Shield 22006 | -2/Research | Identified exit to Garrison 22066 | -2/Research | Entered Garrison 22152 | -2/Garrison | Triggered checkpoint 22218 | -2/Garrison | Garrison Relay disabled 22248 | -2/Garrison | Spotted B-90 Cyclops 22266 | -2/Garrison | Triggered checkpoint 22268 | -2/Garrison | Destroyed B-90 Cyclops 22298 | -2/Garrison | Triggered checkpoint 22330 | -2/Garrison | Triggered checkpoint 22336 | -2/Garrison | Discovered new exit (range 10) 22348 | -2/Garrison | Expanded RIF knowledge: Coupler Efficiency 22393 | -2/Garrison | Triggered checkpoint 22415 | -2/Garrison | Garrison Relay disabled 22507 | -2/Garrison | Garrison Relay disabled 22526 | -2/Garrison | Discovered new exit (range 13) 22590 | -2/Garrison | Found Relay Coupler [Proto] 22661 | -2/Garrison | Entered Access 22661 | -1/Access | Accompanied by 3 allies 22661 | -1/Access | Evolved 2 slots: Power x1, Utility x1 22911 | -1/Access | First assault squad dispatched 23263 | -1/Access | Found Thermal Barrier 23683 | -1/Access | Discovered new exit (range 7) 23721 | -1/Access | P-80 Master assimilated allied Enforcer 10b 23721 | -1/Access | Entered Command 23721 | -1/Command | Accompanied by 5 allies 23803 | -1/Command | Destroyed 9 combat bots 23881 | -1/Command | Found Prototype Device 23881 | -1/Command | Identified Exp. ECM Suite 23944 | -1/Command | Disengaged cave seal 24105 | -1/Command | Destroyed 16 combat bots 24221 | -1/Command | First assault squad dispatched 24280 | -1/Command | High security lockdown imminent 24299 | -1/Command | Spotted Executioner 24299 | -1/Command | Spotted Executioner 24299 | -1/Command | Spotted Executioner 24299 | -1/Command | Spotted Executioner 24299 | -1/Command | Spotted Striker 24299 | -1/Command | Spotted Striker 24299 | -1/Command | Spotted Alpha 7 24299 | -1/Command | Spotted Alpha 7 24309 | -1/Command | Assimilated Alpha 7 with formatsys_high 24311 | -1/Command | Assimilated Striker with formatsys_high 24313 | -1/Command | Assimilated Striker with formatsys_high 24315 | -1/Command | Allies destroyed Executioner 24322 | -1/Command | Allies destroyed Executioner 24330 | -1/Command | Spotted B-99 Colossus 24335 | -1/Command | Allies destroyed Striker 24335 | -1/Command | Allies destroyed Alpha 7 24360 | -1/Command | High security lockdown engaged 24438 | -1/Command | Spotted Combat Programmer 24440 | -1/Command | Spotted Combat Programmer 24445 | -1/Command | Destroyed Combat Programmer 24453 | -1/Command | Destroyed Combat Programmer 24461 | -1/Command | Spotted M Guard 24461 | -1/Command | Assimilated M Guard with formatsys_high 24464 | -1/Command | Spotted M Guard 24464 | -1/Command | Assimilated M Guard with formatsys_high 24530 | -1/Command | Spotted Executioner 24531 | -1/Command | Destroyed Executioner 24693 | -1/Command | Spotted Executioner 24699 | -1/Command | All MAIN.C guards destroyed 24714 | -1/Command | Destroyed Executioner 24715 | -1/Command | P-80 Master assimilated allied Annihilator 10b 24757 | -1/Command | Destroyed 15 combat bots 24763 | -1/Command | Found Prototype Device 24763 | -1/Command | Identified Adv. Kinecellerator 24767 | -1/Command | Found Prototype Processor 24767 | -1/Command | Identified Exp. Targeting Computer 24897 | -1/Command | Spotted Executioner 24901 | -1/Command | Spotted Striker 24940 | -1/Command | Spotted Executioner 24941 | -1/Command | Spotted Executioner 24945 | -1/Command | Destroyed Striker 24947 | -1/Command | Spotted Executioner 24954 | -1/Command | System corruption reached 10% 24957 | -1/Command | Destroyed Executioner 24963 | -1/Command | Destroyed Executioner 24965 | -1/Command | Destroyed Executioner 24969 | -1/Command | Spotted Striker 24970 | -1/Command | Spotted Striker 24970 | -1/Command | Spotted Executioner 25036 | -1/Command | Destroyed Striker 25040 | -1/Command | Build established: Generator-Construct 25079 | -1/Command | Destroyed 9 combat bots 25089 | -1/Command | Destroyed Executioner 25109 | -1/Command | Found Exp. Targeting Computer 25113 | -1/Command | Found Prototype Processor 25113 | -1/Command | Identified Exp. Core Analyzer 25115 | -1/Command | Found Exp. Core Analyzer 25128 | -1/Command | Destroyed Striker 25147 | -1/Command | Spotted Executioner 25151 | -1/Command | Spotted Executioner 25152 | -1/Command | Spotted Striker 25154 | -1/Command | Spotted Striker 25155 | -1/Command | Spotted Executioner 25155 | -1/Command | Spotted Striker 25155 | -1/Command | Spotted Executioner 25189 | -1/Command | Found Adv. Kinecellerator 25267 | -1/Command | Destroyed Striker 25371 | -1/Command | Spotted Executioner 25375 | -1/Command | System corruption reached 30% 25376 | -1/Command | Spotted Striker 25376 | -1/Command | Spotted Executioner 25379 | -1/Command | Spotted Striker 25379 | -1/Command | Spotted Striker 25379 | -1/Command | Spotted Striker 25379 | -1/Command | Spotted Executioner 25424 | -1/Command | Core integrity fell below 50% 25433 | -1/Command | Spotted B-99 Colossus 25434 | -1/Command | Discovered new exit (range 5) 25442 | -1/Command | Destroyed Executioner 25449 | -1/Command | Spotted Executioner 25449 | -1/Command | Spotted Investigator 25450 | -1/Command | Spotted Executioner 25452 | -1/Command | Scanned by Researcher 25457 | -1/Command | Destroyed Executioner 25457 | -1/Command | Destroyed Investigator 25479 | *** | Escaped! Last Messages --------------- 25478_ Penetrated by Slug. 25478_ Slug penetrates Wall. 25478_ Penetrated by Slug. 25478_ Slug penetrates Wall. 25478_ Penetrated by Slug. 25478_ Slug penetrates Wall. 25478_ Penetrated by Slug. 25478_ Slug penetrates Wall. 25478_ Gamma Bomb Array destroyed. 25478_ Arm. Scrap Engine destroyed. 25478_ Scrap Engine core remains intact and functional. 25478_ Penetrated by Slug. 25478_ Slug penetrates B-74 Champion. 25478_ Slug penetrates Wall. 25478_ Slug penetrates Reinforced Barrier. 25478_ Penetrated by Slug. 25478_ Slug penetrates Wall. 25478_ Slug penetrates Reinforced Barrier. [Achievement: Punisher] [Achievement: Victory By Combat] Map ----- +----------------------------------------------------+ | ### ## ### ## # # #?# | | % # # # "### | | % # * #% + !! + ^ | | % =% ## # !! # | | * #""##!+# # | | =% * ! " # [ | | ### ## # "! / # =! | | #?# ##### # ""%" # #%%% | | #?### # # # !%%"%"""" # #[== | | ????## ## # # %[" " "" " # #=*! | | ?????####### # """" #! # =[ | | ?????????## # # """" ##"#####""#/## = | | ?????????# # #?##????###"%% | | ?????????# # # # = #?????????# " ] | | ???????### # # #######?????????#[! %!! | | ?????### # ### ## #???????????????#%!= !% | | ?????# #] # # %# #???????????????#!! ! | | ?????# #%%###### ##########?????????#= | | ?????#== #=!### # # # # #????????## / | | ?????#==* ### ] BB #????????#"%=% | | ?????#== ## % [ BB ##?#?##?##!!!%= | | ?????# # ### pE # # # ##%!%%!% | | ????##"+ # # ### ^^^^ ^ !^!"=*!=/% | | ????# # ### ! ^^^^ ^^^!* =! !%! | | ????# % #; %"= " ^ ^ ^^^^=!%! =! | | ????# % ##; b@" ^ ^ *^^/!% ! | | ????# % #; % ^^^^^^^^ ^/! | | ????# # ## % ^ ^ ^"####### | | ????# " "## % ^ # # # ; "##??????# | | ????# + "?# BB#?#?####?????????# | | ????# # ! ##; BB#????????????????# | | ????# # !%[###;#;##########????????????????# | | ????###### % ! #?#######???????????????????????# | | ?????????# #######"#######?????????????????# | | ?????????# ## "" #?????????????????# | | ?????????# ## = """" #?????????????????# | | ?????????# ## """" #?????????????????# | | ?????????# "" #?????????????????# | | ??????#### #?????????????????# | | ?????## " #?????????????????# | | ?????#" "%" #?????????????????# | | ?????## "%" # #?????????????????# | | ??????# ## ## # #?????????????????# | | ??????# # # # #?????????????????# | | ??????+ ?# !% # #?????????????????# | | ??????+ ?# =% # #??????########???# | | ?????????# #% # # ###/######??????# #???# | | ?????????# == ###### ############# #???# | | ?????????# == # = % % # #???# | | ?????????###### ! %% # #???# | +----------------------------------------------------+ Best States ------------- Heat Dissipation 90 Coolant Potential 80 Energy Generation 105 Energy Capacity 2958 Matter Stores 300 Matter Capacity 800 Sight Range 22 Robot Scan Range 16 Terrain Scan Density 10 ECM Strength 3 Jamming Range 16 Corruption Containment 12 Armor Coverage 400 Resistance: KI 30 Resistance: TH 50 Resistance: EM 50 Phase Shifting 15 Evasion (%) 76 Targeting Accuracy 28 Melee Accuracy 6 Target Analysis 10 Core Analysis 8 Armor Integrity Analysis 40 Recoil Reduction 6 Particle Charging 30 Kinecelleration 50 Salvage Targeting 1 Relay Coupler Types 4 Relay Coupler Value 175 Item Schematics ----------------- Quantum Capacitor | -4/Factory | Scanalyzed Imp. Remote Datajack | -4/Factory | Scanalyzed Robot Schematics ------------------ None Fabricated ------------ Phase Gun | x2 | -6/Factory | Preloaded Alien Tech Used ----------------- None Achievements -------------- Punisher Treasure Hunter Victory By Combat Challenges ------------ None Game ------ Seed SuperchargedMiniLog Manual? 0 Play Time 08:57:36 Cumulative 426.8 hours Start 2023.03.30 @ 08:55:52 End 2023.04.01 @ 17:22:30 Sessions 3 Manual Loads 0 Difficulty Rogue Special Mode None Game No. 195 Rogue 191 Adventurer 0 Explorer 4 Win Type 0 Total 24 Types 8/1/2/5/1/2/3/1/1 Lore% 86 Gallery% 88 Achievement% 80 Wizard Run 0 Options --------- ASCII 0 Keyboard 0 Movement Mouse Keybinds 0 Fullscreen 1 Font 18/SmallcapsGlow Map View 76x50 Tactical HUD 1 Map Filters NONE Filters NONE Steam 1 RUN: 63e67a2f-86df-485a-ba9a-87c0f91873e6